[Event "WYCC U14 Girls 2019"]
[Site "Mumbai"]
[Date "2019.10.11"]
[Round "10.8"]
[White "Poliakova, Varvara"]
[Black "De Rycke, Tyani"]
[Result "1-0"]
[ECO "B40"]
[WhiteElo "2042"]
[BlackElo "1891"]
[Annotator "NA"]
[PlyCount "157"]
[EventDate "2019.10.02"]
[EventType "swiss"]
[EventCountry "IND"]
[SourceTitle "playchess.com"]
[Source "ChessBase"]
[SourceQuality "1"]
[TimeControl "40/5400+30:1800+30"]

1. e4 {[%emt 0:00:00]} c5 {[%emt 0:00:00]} 2. Nf3 {[%emt 0:00:00]} e6 {[%emt 0:00:00]} 3. d4 {[%emt 0:00:00]} cxd4 {[%emt 0:00:00]} 4. Nxd4 {[%emt 0:00:00]} Nf6 {[%emt 0:00:00]} 5. Nc3 {[%emt 0:00:01]} Nc6 {[%emt 0:00:00]} 6. Ndb5 {[%emt 0:00:36]} Bb4 {[%emt 0:00:08]} 7. a3 {[%emt 0:00:35]} Bxc3+ {[%emt 0:00:12]} 8. Nxc3 {[%emt 0:00:05]} d5 {[%emt 0:00:06]} 9. exd5 {[%emt 0:00:04]} exd5 {[%emt 0:00:05]} 10. Bd3 {[%emt 0:00:40]} O-O {[%emt 0:00:21]} 11. O-O {[%emt 0:01:08]} d4 12. Ne2 {[%emt 0:02:04]} Bg4 {[%emt 0:00:37]} 13. Bg5 {[%emt 0:02:19]} Qd6 {[%emt 0:00:57]} 14. h3 {[%emt 0:02:51]} Bh5 {[%emt 0:00:53]} 15. Bf4 {[%emt 0:02:21]} Qd7 {[%emt 0:01:29]} 16. Qd2 {[%emt 0:02:46]} Rfe8 {[%emt 0:00:48]} 17. Ng3 {[%emt 0:03:29]} Bg6 {[%emt 0:01:25]} 18. Rad1 {[%emt 0:02:31]} Rad8 {[%emt 0:03:06]} 19. Bg5 {[%emt 0:02:08]} Bxd3 {[%emt 0:03:13]} 20. Qxd3 {[%emt 0:01:18]} Re6 {[%emt 0:00:55]} 21. Nf5 {[%emt 0:05:27]} h6 {[%emt 0:19:52]} 22. Bc1 {[%emt 0:10:28]} Re4 {[%emt 0:05:44]} 23. Ng3 {[%emt 0:03:20]} Re6 {[%emt 0:13:51]} 24. b4 {[%emt 0:02:43]} Ne5 {[%emt 0:06:56]} 25. Qb3 {[%emt 0:00:52]} Qd5 {[%emt 0:00:55]} 26. Qxd5 {[%emt 0:02:05]} Rxd5 {[%emt 0:00:10]} 27. Bb2 {[%emt 0:02:26]} Red6 {[%emt 0:01:03]} 28. Ne2 {[%emt 0:04:36]} Nc4 {[%emt 0:09:23]} 29. Bxd4 {[%emt 0:02:58]} Nxa3 {[%emt 0:00:11]} 30. c3 {[%emt 0:01:31]} Nb5 {[%emt 0:01:54]} 31. Ra1 {[%emt 0:01:33]} Nxd4 {[%emt 0:00:47]} 32. Nxd4 {[%emt 0:00:12]} a6 {[%emt 0:00:37]} 33. Rfe1 {[%emt 0:00:36]} Rd7 {[%emt 0:00:49]} 34. Nb3 {[%emt 0:02:58]} Rc7 {[%emt 0:02:44]} 35. Nc5 {[%emt 0:01:01]} Rd2 {[%emt 0:07:00]} 36. Rad1 {[%emt 0:01:57]} Rc2 {[%emt 0:03:23]} 37. Rd8+ {[%emt 0:02:10]} Kh7 {[%emt 0:00:07]} 38. Re3 {[%emt 0:00:27]} a5 {[%emt 0:01:46]} 39. Rd6 {[%emt 0:04:42]} axb4 {[%emt 0:03:25]} 40. cxb4 {[%emt 0:00:02]} b6 {[%emt 0:06:39]} 41. Ne4 {[%emt 0:31:11]} Nxe4 {[%emt 0:32:36]} 42. Rxe4 {[%emt 0:00:27]} R7c6 {[%emt 0:03:04]} 43. Red4 {[%emt 0:02:23]} b5 {[%emt 0:00:00]} 44. Rxc6 {[%emt 0:00:00]} Rxc6 {[%emt 0:00:00]} 45. Rd5 {[%emt 0:00:00]} Rb6 {[%emt 0:00:00]} 46. Kf1 {[%emt 0:00:00]} Kg6 {[%emt 0:00:00]} 47. Ke2 {[%emt 0:00:00]} Kf6 {[%emt 0:00:00]} 48. Ke3 {[%emt 0:00:00]} Ke6 {[%emt 0:00:00]} 49. Ke4 {[%emt 0:00:00]} g6 {[%emt 0:00:00]} 50. g4 {[%emt 0:00:00]} g5 {[%emt 0:00:00]} 51. f4 {[%emt 0:00:00]} gxf4 {[%emt 0:00:00]} 52. Rh5 {[%emt 0:00:00]} Kd7 {[%emt 0:00:00]} 53. Rf5 {[%emt 0:00:00]} Re6+ {[%emt 0:00:00]} 54. Kxf4 {[%emt 0:00:00]} Kc6 {[%emt 0:00:00]} 55. Rxf7 {[%emt 0:00:00]} Kd5 {[%emt 0:00:00]} 56. Kf5 {[%emt 0:00:00]} Rc6 {[%emt 0:00:00]} 57. Rf6 {[%emt 0:00:00]} Rc3 {[%emt 0:02:24]} 58. Rxh6 {[%emt 0:00:00]} Rf3+ {[%emt 0:00:13]} 59. Kg5 {[%emt 0:00:00]} Kc4 {[%emt 0:00:21]} 60. h4 {[%emt 0:00:00]} Kxb4 {[%emt 0:00:39]} 61. Rb6 {[%emt 0:00:00]} Rf8 {[%emt 0:00:57]} 62. h5 {[%emt 0:00:00]} Kc5 {[%emt 0:00:31]} 63. Rb7 {[%emt 0:00:00]} Rg8+ {[%emt 0:01:00]} 64. Kh4 {[%emt 0:00:00]} Kc6 {[%emt 0:02:09]} 65. Re7 {[%emt 0:00:00]} b4 {[%emt 0:00:13]} 66. h6 {[%emt 0:00:00]} b3 {[%emt 0:00:32]} 67. g5 {[%emt 0:00:00]} Kd6 {[%emt 0:01:22]} 68. Re1 {[%emt 0:00:00]} Rb8 {[%emt 0:01:08]} 69. Kh5 {[%emt 0:00:00]} b2 {[%emt 0:00:20]} 70. Rb1 {[%emt 0:00:00]} Ke6 {[%emt 0:00:39]} 71. Re1+ {[%emt 0:00:00]} Kd6 {[%emt 0:00:21]} 72. Rb1 {[%emt 0:00:00]} Ke6 {[%emt 0:00:39]} 73. Re1+ {[%emt 0:00:00]} Kf7 {[%emt 0:00:27]} 74. g6+ {[%emt 0:00:00]} Kg8 {[%emt 0:00:18]} 75. h7+ {[%emt 0:00:00]} Kg7 {[%emt 0:00:23]} 76. Re7+ {[%emt 0:00:00]} Kf6 {[%emt 0:00:27]} 77. Rb7 {[%emt 0:00:00]} Rc8 {[%emt 0:02:50]} 78. Rxb2 {[%emt 0:00:00]} Rc5+ {[%emt 0:00:17]} 79. Kh6 {[%emt 0:00:00]} 1-0

[Event "WYCC U14 Girls 2019"]
[Site "Mumbai"]
[Date "2019.10.11"]
[Round "10.9"]
[White "Obada, Ema"]
[Black "Cai, Boheng"]
[Result "1-0"]
[ECO "B10"]
[WhiteElo "1987"]
[BlackElo "1853"]
[Annotator "NA"]
[PlyCount "65"]
[EventDate "2019.10.02"]
[EventType "swiss"]
[EventCountry "IND"]
[SourceTitle "playchess.com"]
[Source "ChessBase"]
[SourceQuality "1"]
[TimeControl "40/5400+30:1800+30"]

1. e4 {[%emt 0:00:00]} c6 {[%emt 0:00:00]} 2. d3 {[%emt 0:00:00]} d5 {[%emt 0:00:00]} 3. Nd2 {[%emt 0:00:00]} e6 {[%emt 0:00:13]} 4. Ngf3 {[%emt 0:00:13]} Be7 {[%emt 0:00:24]} 5. d4 {[%emt 0:03:35]} dxe4 {[%emt 0:01:00]} 6. Nxe4 {[%emt 0:00:06]} Nf6 {[%emt 0:01:56]} 7. Nxf6+ {[%emt 0:02:43]} Bxf6 {[%emt 0:00:23]} 8. Be2 {[%emt 0:01:11]} Nd7 {[%emt 0:01:43]} 9. O-O {[%emt 0:00:39]} O-O {[%emt 0:00:16]} 10. Bf4 {[%emt 0:02:07]} b6 {[%emt 0:06:16]} 11. Bd3 {[%emt 0:03:08]} Bb7 {[%emt 0:02:24]} 12. Be4 {[%emt 0:03:21]} Re8 {[%emt 0:09:15]} 13. Re1 {[%emt 0:02:11]} g6 {[%emt 0:02:04]} 14. Ne5 {[%emt 0:08:29]} Nxe5 {[%emt 0:01:54]} 15. dxe5 {[%emt 0:00:09]} Be7 {[%emt 0:01:12]} 16. Qg4 {[%emt 0:02:22]} Qc7 {[%emt 0:05:10]} 17. h4 {[%emt 0:05:11]} c5 {[%emt 0:05:09]} 18. h5 {[%emt 0:01:26]} Bxe4 {[%emt 0:00:56]} 19. Rxe4 {[%emt 0:00:05]} Bf8 {[%emt 0:04:06]} 20. Bg5 {[%emt 0:01:05]} Bg7 {[%emt 0:03:54]} 21. Rae1 {[%emt 0:01:08]} Rac8 {[%emt 0:08:26]} 22. Bf6 {[%emt 0:05:28]} Bf8 {[%emt 0:08:35]} 23. R1e3 {[%emt 0:03:19]} Qb7 {[%emt 0:02:15]} 24. Qh3 {[%emt 0:05:22]} Bg7 {[%emt 0:05:13]} 25. Rh4 {[%emt 0:02:52]} Bxf6 {[%emt 0:06:03]} 26. exf6 {[%emt 0:00:05]} e5 {[%emt 0:01:52]} 27. Rg3 {[%emt 0:06:16]} Rc7 {[%emt 0:02:44]} 28. Qf5 {[%emt 0:03:07]} Qc8 {[%emt 0:05:40]} 29. Qe4 {[%emt 0:00:04]} Qb7 {[%emt 0:04:23]} 30. hxg6 {[%emt 0:00:23]} fxg6 {[%emt 0:01:07]} 31. Rxg6+ {[%emt 0:00:11]} Kf8 {[%emt 0:00:17]} 32. Qc4 {[%emt 0:00:45]} Rf7 {[%emt 0:03:49]} 33. Qg4 {[%emt 0:00:07]} 1-0

[Event "WYCC U14 Girls 2019"]
[Site "Mumbai"]
[Date "2019.10.11"]
[Round "10.10"]
[White "Kurmangaliyeva, Liya"]
[Black "Renganayaki V"]
[Result "1-0"]
[ECO "B38"]
[WhiteElo "1936"]
[BlackElo "1641"]
[Annotator "NA"]
[PlyCount "111"]
[EventDate "2019.10.02"]
[EventType "swiss"]
[EventCountry "IND"]
[SourceTitle "playchess.com"]
[Source "ChessBase"]
[SourceQuality "1"]
[TimeControl "40/5400+30:1800+30"]

1. e4 {[%emt 0:00:00]} c5 {[%emt 0:00:00]} 2. Nf3 {[%emt 0:00:05]} g6 {[%emt 0:01:36]} 3. d4 {[%emt 0:00:35]} cxd4 {[%emt 0:00:05]} 4. Nxd4 {[%emt 0:00:23]} Bg7 {[%emt 0:00:04]} 5. c4 {[%emt 0:00:29]} Nc6 {[%emt 0:00:05]} 6. Be3 {[%emt 0:00:10]} Nf6 {[%emt 0:00:06]} 7. Nc3 {[%emt 0:00:16]} d6 {[%emt 0:00:12]} 8. Be2 {[%emt 0:00:41]} O-O {[%emt 0:00:29]} 9. O-O {[%emt 0:00:30]} Bd7 {[%emt 0:00:30]} 10. Qd2 {[%emt 0:00:43]} Nxd4 {[%emt 0:01:55]} 11. Bxd4 {[%emt 0:00:16]} Bc6 {[%emt 0:00:07]} 12. f3 {[%emt 0:00:37]} a5 {[%emt 0:00:37]} 13. Rab1 {[%emt 0:05:30]} Nd7 {[%emt 0:01:34]} 14. Be3 {[%emt 0:00:26]} Nc5 {[%emt 0:00:09]} 15. b3 {[%emt 0:01:25]} e6 {[%emt 0:00:34]} 16. Rfc1 {[%emt 0:16:10]} Be5 {[%emt 0:02:38]} 17. Bf1 {[%emt 0:05:12]} Qe7 {[%emt 0:17:06]} 18. Ne2 {[%emt 0:10:39]} Rfd8 {[%emt 0:15:04]} 19. Nd4 {[%emt 0:04:33]} h5 {[%emt 0:13:47]} 20. Qf2 {[%emt 0:08:51]} Kh7 {[%emt 0:10:00]} 21. Rd1 {[%emt 0:02:34]} g5 {[%emt 0:04:36]} 22. Qe2 {[%emt 0:09:54]} Bh8 {[%emt 0:07:05]} 23. a3 {[%emt 0:05:46]} Be8 {[%emt 0:12:23]} 24. b4 {[%emt 0:06:47]} axb4 {[%emt 0:00:35]} 25. axb4 {[%emt 0:00:02]} Na4 {[%emt 0:04:45]} 26. Rb3 {[%emt 0:00:23]} Nb6 {[%emt 0:01:52]} 27. Nxe6 {[%emt 0:11:57]} Qxe6 {[%emt 0:02:29]} 28. Bxb6 {[%emt 0:00:04]} Rdc8 {[%emt 0:02:46]} 29. Rbb1 {[%emt 0:02:08]} d5 {[%emt 0:00:21]} 30. Be3 {[%emt 0:02:38]} dxc4 {[%emt 0:00:19]} 31. Bxg5 {[%emt 0:01:30]} c3 {[%emt 0:00:33]} 32. Rbc1 {[%emt 0:02:01]} Ba4 {[%emt 0:00:26]} 33. Rd5 {[%emt 0:01:45]} Be8 {[%emt 0:00:53]} 34. Be3 {[%emt 0:00:38]} f5 {[%emt 0:00:29]} 35. Rxf5 {[%emt 0:00:49]} Bg6 {[%emt 0:00:02]} 36. Rd5 {[%emt 0:00:17]} Rd8 {[%emt 0:00:40]} 37. Rxd8 {[%emt 0:00:33]} Rxd8 {[%emt 0:00:02]} 38. Qb5 {[%emt 0:00:21]} Qd7 {[%emt 0:01:01]} 39. Qxd7+ {[%emt 0:00:47]} Rxd7 {[%emt 0:00:01]} 40. Bc4 {[%emt 0:00:30]} Bg7 {[%emt 0:01:25]} 41. Bd5 {[%emt 0:08:18]} Rc7 {[%emt 0:08:42]} 42. Bb3 {[%emt 0:07:17]} Bf8 {[%emt 0:04:06]} 43. b5 {[%emt 0:02:35]} Ba3 {[%emt 0:04:05]} 44. Rc2 {[%emt 0:00:20]} Bb4 {[%emt 0:02:04]} 45. Bd4 {[%emt 0:02:50]} Be8 {[%emt 0:00:48]} 46. b6 {[%emt 0:00:51]} Rc8 {[%emt 0:00:20]} 47. Kf2 {[%emt 0:00:37]} Bb5 {[%emt 0:02:21]} 48. Ke3 {[%emt 0:00:07]} Ra8 {[%emt 0:02:22]} 49. Bxc3 {[%emt 0:03:20]} Ra3 {[%emt 0:01:05]} 50. Bxb4 {[%emt 0:00:08]} Rxb3+ {[%emt 0:00:02]} 51. Bc3 {[%emt 0:00:17]} Ra3 {[%emt 0:00:49] Bb4 Rb3+ Bc3 Ba4} 52. Kf4 {[%emt 0:03:24] Rxb6 Bd4 Bxc2 Bxb6} Bd3 {[%emt 0:01:27]} 53. Kg5 {[%emt 0:00:58]} Bf1 {[%emt 0:00:12]} 54. g3 {[%emt 0:00:26]} Bg2 {[%emt 0:00:11]} 55. f4 {[%emt 0:00:14]} Bxe4 {[%emt 0:00:13]} 56. Kxh5 {[%emt 0:00:00] Kg7 Kg5 Kf7 g4} 1-0

[Event "WYCC U14 Girls 2019"]
[Site "Mumbai"]
[Date "2019.10.11"]
[Round "10.11"]
[White "Ruseva, Eva"]
[Black "Ishvi Aggarwal"]
[Result "0-1"]
[ECO "D35"]
[WhiteElo "1813"]
[BlackElo "1935"]
[Annotator "NA"]
[PlyCount "123"]
[EventDate "2019.10.02"]
[EventType "swiss"]
[EventCountry "IND"]
[SourceTitle "playchess.com"]
[Source "ChessBase"]
[SourceQuality "1"]
[TimeControl "40/5400+30:1800+30"]

1. d4 d5 2. c4 e6 3. Nc3 Nf6 4. cxd5 exd5 5. Bg5 Be7 6. e3 c6 7. Bd3 Nbd7 8. Qc2 h6 9. Bh4 Nh5 10. Bxe7 Qxe7 11. Nge2 Nb6 12. O-O-O Bd7 13. Ng3 Nxg3 14. hxg3 O-O-O 15. Na4 Nxa4 16. Qxa4 Kb8 17. Qc2 Rhe8 18. Bf5 Qg5 19. Bxd7 Rxd7 20. Rh4 Rde7 21. Rf4 g6 22. g4 h5 23. gxh5 Qxh5 24. g3 f5 25. Re1 Re4 26. Qd1 Rxf4 27. gxf4 Rh8 28. Kd2 Qh2 29. Qe2 Qg2 30. Qf1 Qf3 31. Qe2 Qe4 32. Rg1 Qe6 33. Qf3 Qd6 34. a3 c5 35. dxc5 Qxc5 36. Rc1 Qa5+ 37. Kc2 Rh2 38. Rd1 Qa4+ 39. Kb1 Rxf2 40. Qxf2 Qxd1+ 41. Ka2 Qc1 42. Qh4 Qc4+ 43. Ka1 a6 44. Qd8+ Ka7 45. Qe8 d4 46. exd4 Qxd4 47. Qxg6 Qxf4 48. Qg1+ Ka8 49. Qg8+ Qb8 50. Qf7 f4 51. Kb1 Qd6 52. Qe8+ Ka7 53. Qe2 Qc5 54. Qf3 Qg1+ 55. Kc2 Qg3 56. Qf1 f3 57. Kd1 Qd6+ 58. Kc2 Qg3 59. Kd1 Qd6+ 60. Kc2 Qc5+ 61. Kd3 Qb5+ 62. Kd4 0-1

[Event "WYCC U14 Girls 2019"]
[Site "Mumbai"]
[Date "2019.10.11"]
[Round "10.12"]
[White "Sulyok, Eszter"]
[Black "Ince, Safiye Oyku"]
[Result "0-1"]
[ECO "A10"]
[WhiteElo "1893"]
[BlackElo "1840"]
[Annotator "NA"]
[PlyCount "100"]
[EventDate "2019.10.02"]
[EventType "swiss"]
[EventCountry "IND"]
[SourceTitle "playchess.com"]
[Source "ChessBase"]
[SourceQuality "1"]
[TimeControl "40/5400+30:1800+30"]

1. c4 {[%emt 0:00:00]} b6 {[%emt 0:00:00]} 2. Nc3 {[%emt 0:00:03]} Bb7 {[%emt 0:00:00]} 3. e4 {[%emt 0:00:20]} e6 {[%emt 0:00:00]} 4. g3 {[%emt 0:10:04]} f5 {[%emt 0:13:16]} 5. d3 {[%emt 0:01:31]} Nf6 {[%emt 0:03:33]} 6. Bg2 {[%emt 0:00:44]} Bb4 {[%emt 0:03:09]} 7. Bd2 {[%emt 0:02:52]} O-O {[%emt 0:03:13]} 8. Nge2 {[%emt 0:00:39]} Na6 {[%emt 0:06:20]} 9. O-O {[%emt 0:03:47]} Nc5 {[%emt 0:04:58]} 10. Qc2 {[%emt 0:04:57]} fxe4 {[%emt 0:05:04]} 11. dxe4 {[%emt 0:02:37]} Na6 {[%emt 0:06:02]} 12. a3 {[%emt 0:03:40]} Be7 {[%emt 0:00:17]} 13. Rfe1 {[%emt 0:04:19]} Ng4 {[%emt 0:00:21]} 14. b4 {[%emt 0:19:57]} Ne5 {[%emt 0:11:12]} 15. Bf4 {[%emt 0:12:55]} Nxc4 {[%emt 0:05:37]} 16. Nb5 {[%emt 0:00:25]} Nxa3 {[%emt 0:00:26]} 17. Nxa3 {[%emt 0:00:50]} Bxb4 {[%emt 0:02:12]} 18. Red1 {[%emt 0:02:50]} Bc5 {[%emt 0:00:53]} 19. Nc4 {[%emt 0:01:48]} Nb4 {[%emt 0:01:27]} 20. Qc3 {[%emt 0:01:07]} Qe7 {[%emt 0:03:17]} 21. Ne3 {[%emt 0:05:20]} d6 {[%emt 0:01:56]} 22. Nf1 {[%emt 0:07:41]} Qf7 {[%emt 0:02:41]} 23. Rab1 {[%emt 0:03:32]} a5 {[%emt 0:01:29]} 24. Nc1 {[%emt 0:03:01]} e5 {[%emt 0:02:09]} 25. Be3 {[%emt 0:00:05]} Bxe3 {[%emt 0:00:20]} 26. Qxe3 {[%emt 0:00:06]} Ba6 {[%emt 0:00:10]} 27. Rd2 {[%emt 0:02:16]} Rad8 {[%emt 0:03:18]} 28. h3 {[%emt 0:02:19]} c5 {[%emt 0:00:09]} 29. Nh2 {[%emt 0:00:12]} a4 {[%emt 0:01:41]} 30. Nf3 {[%emt 0:00:56]} b5 {[%emt 0:00:44]} 31. Ne2 {[%emt 0:01:48]} Nc6 {[%emt 0:01:03]} 32. Nc3 {[%emt 0:01:56]} Nd4 {[%emt 0:00:01]} 33. Ng5 {[%emt 0:00:13]} Qh5 {[%emt 0:03:04]} 34. g4 {[%emt 0:01:25]} Qh6 {[%emt 0:00:40]} 35. Nd5 {[%emt 0:00:35]} b4 {[%emt 0:01:18]} 36. Nc7 {[%emt 0:00:11]} Bc8 {[%emt 0:01:03]} 37. Ra2 {[%emt 0:00:31]} Rf4 {[%emt 0:01:13]} 38. Nf3 {[%emt 0:00:56]} Nxf3+ {[%emt 0:00:07]} 39. Bxf3 {[%emt 0:00:05]} Qxh3 {[%emt 0:00:45]} 40. Bg2 {[%emt 0:00:01]} Qxe3 {[%emt 0:02:33]} 41. fxe3 {[%emt 0:30:06]} Rf7 {[%emt 0:30:41]} 42. Nd5 {[%emt 0:00:15]} a3 {[%emt 0:00:24]} 43. Bf1 {[%emt 0:00:00]} Bxg4 {[%emt 0:00:00]} 44. Nxb4 {[%emt 0:00:00]} Rb7 {[%emt 0:00:00]} 45. Nc6 {[%emt 0:00:00]} Rxb1 {[%emt 0:00:00]} 46. Nxd8 {[%emt 0:00:00]} Bh3 {[%emt 0:00:00]} 47. Rxa3 {[%emt 0:00:00]} Bxf1 {[%emt 0:00:00]} 48. Ra8 {[%emt 0:00:00]} Kf8 {[%emt 0:00:00]} 49. Nb7+ {[%emt 0:00:00]} Ke7 {[%emt 0:00:00]} 50. Ra7 {[%emt 0:00:00]} Ba6+ {[%emt 0:00:00]} 0-1

[Event "WYCC U14 Girls 2019"]
[Site "Mumbai"]
[Date "2019.10.12"]
[Round "11.1"]
[White "Mungunzul, Bat-Erdene"]
[Black "Rakshitta Ravi"]
[Result "0-1"]
[ECO "A50"]
[WhiteElo "1912"]
[BlackElo "2310"]
[Annotator "ChessBase"]
[PlyCount "132"]
[EventDate "2019.10.02"]
[EventType "swiss"]
[EventCountry "IND"]
[SourceTitle "playchess.com"]
[Source "ChessBase"]
[SourceQuality "1"]
[TimeControl "40/5400+30:1800+30"]

1. d4 {[%emt 0:00:00]} Nf6 {[%emt 0:00:08]} 2. c4 {[%emt 0:00:00]} Nc6 {[%emt 0:00:10]} 3. Nf3 {[%emt 0:00:23]} e6 {[%emt 0:00:12]} 4. g3 {[%emt 0:03:00]} Bb4+ {[%emt 0:00:17]} 5. Bd2 {[%emt 0:00:11]} Qe7 {[%emt 0:01:02]} 6. Bg2 {[%emt 0:02:33]} a5 {[%emt 0:02:08]} 7. O-O {[%emt 0:01:28]} Bxd2 {[%emt 0:00:06]} 8. Nbxd2 {[%emt 0:00:28]} d6 {[%emt 0:00:07]} 9. Qa4 {[%emt 0:13:51]} O-O {[%emt 0:02:41]} 10. e4 {[%emt 0:01:02]} e5 {[%emt 0:03:05]} 11. d5 {[%emt 0:03:58]} Nb8 {[%emt 0:07:43]} 12. Ne1 {[%emt 0:02:15]} Bd7 {[%emt 0:03:38]} 13. Qc2 {[%emt 0:02:15]} Na6 {[%emt 0:00:41]} 14. Nd3 {[%emt 0:00:58]} Ng4 {[%emt 0:02:53]} 15. Rae1 {[%emt 0:07:04]} Nb4 {[%emt 0:20:18]} 16. Qb1 {[%emt 0:03:47]} f5 {[%emt 0:01:46]} 17. f3 {[%emt 0:04:04]} Nh6 {[%emt 0:03:53]} 18. a3 {[%emt 0:10:15]} Nxd3 {[%emt 0:00:20]} 19. Qxd3 {[%emt 0:00:09]} f4 {[%emt 0:00:52]} 20. g4 {[%emt 0:02:58]} a4 {[%emt 0:04:40]} 21. Rc1 {[%emt 0:02:08]} b6 {[%emt 0:00:18]} 22. Qe2 {[%emt 0:02:12]} Nf7 {[%emt 0:01:08]} 23. Rfd1 {[%emt 0:01:30]} h5 {[%emt 0:02:26]} 24. h3 {[%emt 0:00:23]} g6 {[%emt 0:03:32]} 25. Qf2 {[%emt 0:03:02]} Kg7 {[%emt 0:00:45]} 26. Kf1 {[%emt 0:00:51]} Rab8 {[%emt 0:06:00]} 27. Ke1 {[%emt 0:05:05]} Rh8 {[%emt 0:01:53]} 28. Rc2 {[%emt 0:04:58]} Rbf8 {[%emt 0:01:15]} 29. Nf1 {[%emt 0:03:11]} hxg4 {[%emt 0:04:48]} 30. hxg4 {[%emt 0:00:18]} Ng5 {[%emt 0:00:06]} 31. Rd3 {[%emt 0:02:28]} Qf6 {[%emt 0:04:22]} 32. Rcc3 {[%emt 0:03:00]} Qd8 {[%emt 0:07:24]} 33. Qd2 {[%emt 0:02:03]} Qc8 {[%emt 0:02:02]} 34. Qf2 {[%emt 0:00:00]} Qd8 {[%emt 0:00:00]} 35. Qd2 {[%emt 0:01:00]} Qc8 {[%emt 0:01:00]} 36. Qd1 {[%emt 0:01:36]} Rhg8 {[%emt 0:00:30]} 37. Nd2 {[%emt 0:00:30]} Qb8 {[%emt 0:00:30]} 38. Qc2 {[%emt 0:00:30]} Rf6 {[%emt 0:00:30]} 39. Qc1 {[%emt 0:07:07]} Rgf8 {[%emt 0:08:15]} 40. Ke2 {[%emt 0:01:04]} R8f7 {[%emt 0:04:04]} 41. Qb1 {[%emt 0:35:13]} Kf8 {[%emt 0:30:26]} 42. Rc1 {[%emt 0:00:00]} Ke7 {[%emt 0:00:00]} 43. Rcc3 {[%emt 0:00:00]} Qh8 {[%emt 0:00:00]} 44. Qg1 {[%emt 0:00:00]} Rh7 {[%emt 0:00:00]} 45. Rc1 {[%emt 0:00:00]} Rff7 {[%emt 0:00:00]} 46. Rdc3 {[%emt 0:00:00]} Rh4 {[%emt 0:00:00]} 47. Rf1 {[%emt 0:00:00]} Rfh7 {[%emt 0:00:00]} 48. Qf2 {[%emt 0:00:00]} Rh2 {[%emt 0:00:00]} 49. Kd1 {[%emt 0:00:00]} R7h3 {[%emt 0:00:00]} 50. Qe2 {[%emt 0:00:00]} Rg3 {[%emt 0:00:00]} 51. Rf2 {[%emt 0:00:00]} Rhxg2 {[%emt 0:00:00]} 52. Rxg2 {[%emt 0:00:00]} Qh1+ {[%emt 0:00:00]} 53. Qf1 {[%emt 0:00:00]} Qxf1+ {[%emt 0:00:00]} 54. Nxf1 {[%emt 0:00:00]} Rxg2 {[%emt 0:00:00]} 55. Nd2 {[%emt 0:00:00]} Kd8 {[%emt 0:00:00]} 56. Ke1 {[%emt 0:00:00]} b5 {[%emt 0:00:00]} 57. c5 {[%emt 0:00:00]} dxc5 {[%emt 0:00:00]} 58. Rxc5 {[%emt 0:00:00]} Bxg4 {[%emt 0:00:00]} 59. fxg4 {[%emt 0:00:00]} Rxd2 {[%emt 0:00:00]} 60. Rxb5 {[%emt 0:00:00]} Rd4 {[%emt 0:00:00]} 61. Rb8+ {[%emt 0:00:00]} Kd7 {[%emt 0:00:00]} 62. Rg8 {[%emt 0:00:00]} Nxe4 {[%emt 0:00:00]} 63. Rxg6 {[%emt 0:00:00]} f3 {[%emt 0:00:00]} 64. Rg7+ {[%emt 0:00:00]} Kd6 {[%emt 0:00:00]} 65. Rf7 {[%emt 0:00:00]} f2+ {[%emt 0:00:00]} 66. Kf1 {[%emt 0:00:00]} Rd1+ {[%emt 0:00:00]} 0-1

[Event "WYCC U14 Girls 2019"]
[Site "Mumbai"]
[Date "2019.10.12"]
[Round "11.2"]
[White "Kamalidenova, Meruert"]
[Black "Roebers, Eline"]
[Result "1-0"]
[ECO "A83"]
[WhiteElo "2025"]
[BlackElo "2083"]
[Annotator "NA"]
[PlyCount "63"]
[EventDate "2019.10.02"]
[EventType "swiss"]
[EventCountry "IND"]
[SourceTitle "playchess.com"]
[Source "ChessBase"]
[SourceQuality "1"]
[TimeControl "40/5400+30:1800+30"]

1. d4 {[%emt 0:00:00]} f5 {[%emt 0:00:00]} 2. e4 {[%emt 0:00:00]} fxe4 {[%emt 0:00:00]} 3. Nc3 {[%emt 0:00:00]} Nf6 {[%emt 0:00:04]} 4. Bg5 {[%emt 0:00:11]} c6 {[%emt 0:01:04]} 5. f3 {[%emt 0:00:50]} d5 {[%emt 0:10:51]} 6. fxe4 {[%emt 0:01:45]} Nxe4 {[%emt 0:02:28]} 7. Nxe4 {[%emt 0:01:40]} dxe4 {[%emt 0:00:02]} 8. Bc4 {[%emt 0:03:53]} c5 {[%emt 0:10:29]} 9. Ne2 {[%emt 0:03:16]} Nd7 {[%emt 0:04:31]} 10. O-O {[%emt 0:06:49]} Nf6 {[%emt 0:01:03]} 11. c3 {[%emt 0:02:09]} Qb6 {[%emt 0:09:27]} 12. Bxf6 {[%emt 0:05:49]} exf6 {[%emt 0:00:39]} 13. Nf4 {[%emt 0:00:09]} f5 {[%emt 0:07:36]} 14. Nd5 {[%emt 0:02:45]} Qd6 {[%emt 0:07:25]} 15. Qb3 {[%emt 0:03:27]} Be7 {[%emt 0:21:52]} 16. Rae1 {[%emt 0:04:45]} Bd8 {[%emt 0:05:47]} 17. Bb5+ {[%emt 0:02:56]} Kf8 {[%emt 0:01:25]} 18. Rxe4 {[%emt 0:08:12]} Be6 {[%emt 0:00:13]} 19. Bc4 {[%emt 0:09:58]} Rb8 {[%emt 0:05:08]} 20. Qb5 {[%emt 0:02:58]} g6 {[%emt 0:03:31]} 21. dxc5 {[%emt 0:03:18]} Qd7 {[%emt 0:01:29]} 22. Qb3 {[%emt 0:05:59]} Kg7 {[%emt 0:01:41]} 23. Rd4 {[%emt 0:01:14]} Bxd5 {[%emt 0:02:25]} 24. Rxd5 {[%emt 0:00:38]} Qc7 {[%emt 0:00:32]} 25. Qd1 {[%emt 0:01:42]} Be7 {[%emt 0:00:32]} 26. Qb3 {[%emt 0:00:00]} Bd8 {[%emt 0:00:28]} 27. Qd1 {[%emt 0:01:00]} Be7 {[%emt 0:00:32]} 28. Qd4+ {[%emt 0:00:51]} Kh6 {[%emt 0:00:40]} 29. Rf3 {[%emt 0:00:35]} g5 {[%emt 0:00:45]} 30. Rd7 {[%emt 0:02:14]} Qxc5 {[%emt 0:00:39]} 31. Rh3+ {[%emt 0:00:05]} Kg6 {[%emt 0:00:11]} 32. Bf7+ {[%emt 0:00:03]} 1-0